{"text_format":"1","workbook":"xlsx","n_sheets":1,"sheets":["Лист1"],"not_rendered":{"charts":0,"images":7,"macros":1,"external_links":0,"defined_names":18,"comments":0,"pivot_tables":0},"unopened":[],"bounds":{"document_bytes":16777216,"sheet_cells":100000,"rows_first":2000,"rows_last":500,"rows_between":2000,"halvings":0,"cell_chars":16384,"cell_head_chars":4096},"cells_cut":0,"cells_raw":0,"read":"whole","date_system":"1900"}

{"sheet":"Лист1","index":0,"n_rows":42,"n_cols":21,"rows_kept":42,"cut":false,"hidden":false,"merged":[[2,7,2,8]]}
[]
[]
[null,null,null,null,null,null,null,"Индексы изменения сметной стоимости",null,null,null,null,null,null,null,null,null,null,null,"Категория надежности",1]
[null,null,null,null,null,null,null,"Год",2018,null,null,null,null,null,null,null,null,null,null,"Мощность",0]
[null,null,null,null,null,null,null,"расчетный квартал (предыдущий текущему кварталу)",0]
[null,null,null,null,null,null,null,"Подземная прокладка кабеля с алюминиевыми жилами",5.81,null,null,null,null,null,null,null,null,null,null,"Уровень напряжения"]
[null,null,null,null,null,null,null,"Воздушная прокладка провода с алюминиевыми жилами",4.74]
[null,null,null,null,null,null,null,"Строительство ТП (прочие объекты)",6.83]
[null,null,null,null,null,null,null,null,4]
[]
[]
[]
[]
[]
[]
[]
[]
[null,"Тип ВЛ-0,4 кВ","Сечение, мм2","Ставка за строительство \nВЛ-0,4 кВ, руб./км","Протяженность ВЛ, км","Плата  (без НДС), руб."]
[null,null,null,{"$f":"ROUND(IF(ISERROR(HLOOKUP(C19,#REF!,2,FALSE)),0,HLOOKUP(C19,#REF!,2,FALSE)),2)","v":0},null,{"$f":"IF(AND($U$4<=150,U3=1),0,D19*E19*$U$3*$I$7)","v":0}]
[]
["Тип застройки","Тип КЛ-0,4 кВ","Сечение, мм2","Ставка за строительство \nКЛ-0,4 кВ, руб./км","Протяженность КЛ, км","Плата по ставке (без НДС), руб."]
["городская",null,null,{"$f":"IF(B22=\"ААБл_1\",ROUND(IF(ISERROR(HLOOKUP(C22,#REF!,2,FALSE)),0,HLOOKUP(C22,#REF!,2,FALSE)),2),IF(B22=\"АСБ_1\",ROUND(IF(ISERROR(HLOOKUP(C22,#REF!,2,FALSE)),0,HLOOKUP(C22,#REF!,2,FALSE)),2),0))","v":0},null,{"$f":"IF(AND($U$4<=150,U6=1),0,D22*E22*$U$3*$I$6)","v":0}]
["сельская",null,null,{"$f":"IF(B23=\"ААБл_1\",ROUND(IF(ISERROR(HLOOKUP(C23,#REF!,3,FALSE)),0,HLOOKUP(C23,#REF!,3,FALSE)),2),IF(B23=\"АСБ_1\",ROUND(IF(ISERROR(HLOOKUP(C23,#REF!,3,FALSE)),0,HLOOKUP(C23,#REF!,3,FALSE)),2),0))","v":0},null,{"$f":"IF(AND($U$4<=150,U7=1),0,D23*E23*$U$3*$I$6)","v":0}]
[]
[null,"Тип КЛ-0,4 кВ с проколом грунта","Сечение, мм2","Ставка за строительство \nКЛ-0,4 кВ, руб./100 м","Протяженность прокола, м","Плата по ставке (без НДС), руб."]
[null,null,null,{"$f":"IF(B26=\"ААБл_1пр\",ROUND(IF(ISERROR(HLOOKUP(C26,#REF!,2,FALSE)),0,HLOOKUP(C26,#REF!,2,FALSE)),2),IF(B26=\"АСБ_1пр\",ROUND(IF(ISERROR(HLOOKUP(C26,#REF!,2,FALSE)),0,HLOOKUP(C26,#REF!,2,FALSE)),2),0))","v":0},null,{"$f":"IF(AND($U$4<=150,U10=1),0,D26*E26/100*$U$3*$I$7)","v":0}]
[]
[null,"Тип ВЛ-6(10) кВ","Сечение, мм2","Ставка за строительство \nВЛ-6(10) кВ, руб./км","Протяженность ВЛ, км","Плата по ставке (без НДС), руб."]
[null,null,null,{"$f":"IF(B29=\"СИП3\",ROUND(IF(ISERROR(HLOOKUP(C29,#REF!,2,FALSE)),0,HLOOKUP(C29,#REF!,2,FALSE)),2),IF(B29=\"АС\",ROUND(IF(ISERROR(HLOOKUP(C29,#REF!,2,FALSE)),0,HLOOKUP(C29,#REF!,2,FALSE)),2),0))","v":0},null,{"$f":"IF(AND($U$4<=150,U3=1),0,D29*E29*$U$3*$I$7)","v":0}]
[]
["Тип застройки","Тип КЛ-6(10) кВ","Сечение, мм2","Ставка за строительство \nКЛ-6(10) кВ, руб./км","Протяженность КЛ, км","Плата по ставке (без НДС), руб."]
["городская",null,null,{"$f":"IF(B32=\"ААБл_10\",ROUND(IF(ISERROR(HLOOKUP(C32,#REF!,2,FALSE)),0,HLOOKUP(C32,#REF!,2,FALSE)),2),IF(B32=\"АСБ_10\",ROUND(IF(ISERROR(HLOOKUP(C32,#REF!,2,FALSE)),0,HLOOKUP(C32,#REF!,2,FALSE)),2),IF(B32=\"АПвПг_10\",ROUND(IF(ISERROR(HLOOKUP(C32,#REF!,2,FALSE)),0,HLOOKUP(C32,#REF!,2,FALSE)),2),0)))","v":0},null,{"$f":"IF(AND($U$4<=150,U16=1),0,D32*E32*$U$3*$I$6)","v":0}]
["сельская",null,null,{"$f":"IF(B33=\"ААБл_10\",ROUND(IF(ISERROR(HLOOKUP(C33,#REF!,3,FALSE)),0,HLOOKUP(C33,#REF!,3,FALSE)),2),IF(B33=\"АСБ_10\",ROUND(IF(ISERROR(HLOOKUP(C33,#REF!,3,FALSE)),0,HLOOKUP(C33,#REF!,3,FALSE)),2),IF(B33=\"АПвПг_10\",ROUND(IF(ISERROR(HLOOKUP(C33,#REF!,3,FALSE)),0,HLOOKUP(C33,#REF!,3,FALSE)),2),0)))","v":0},null,{"$f":"IF(AND($U$4<=150,U17=1),0,D33*E33*$U$3*$I$6)","v":0}]
[]
[null,"Тип КЛ-6(10) кВ с проколом грунта","Сечение, мм2","Ставка за строительство \nКЛ-6(10) кВ, руб./100 м","Протяженность прокола, м","Плата по ставке (без НДС), руб."]
[null,null,null,{"$f":"IF(B36=\"ААБл_10пр\",ROUND(IF(ISERROR(HLOOKUP(C36,#REF!,2,FALSE)),0,HLOOKUP(C36,#REF!,2,FALSE)),2),IF(B36=\"АСБ_10пр\",ROUND(IF(ISERROR(HLOOKUP(C36,#REF!,2,FALSE)),0,HLOOKUP(C36,#REF!,2,FALSE)),2),IF(B36=\"АПвПг_10пр\",ROUND(IF(ISERROR(HLOOKUP(C36,#REF!,2,FALSE)),0,HLOOKUP(C36,#REF!,2,FALSE)),2),0)))","v":0},null,{"$f":"IF(AND($U$4<=150,U20=1),0,D36*E36/100*$U$3*$I$6)","v":0}]
[]
[null,"Тип ТП","Мощность ТП, кВА","Ставка за строительство ТП, руб./кВт","Плата по ставке (без НДС), руб."]
[null,null,null,{"$f":"ROUND(IF(B39=\"СТП\",(VLOOKUP(C39,#REF!,2,0)),IF(B39=\"КТПК_однотрансформаторная\",(VLOOKUP(C39,#REF!,2,0)),IF(B39=\"КТПК_двухтрансформаторная\",(VLOOKUP(C39,#REF!,2,0)),IF(B39=\"КТПББ_однотрансформаторная\",(VLOOKUP(C39,#REF!,2,0)),IF(B39=\"КТПББ_двухтрансформаторная\",(VLOOKUP(C39,#REF!,2,0)),0))))),2)","v":0},{"$f":"IF(AND($U$4<=150,U3=1),0,D39*$U$4*$I$8)","v":0}]
[]
[null,"Тип РП","Ставка за строительство РП, руб./кВт","Плата по ставке (без НДС)"]
[null,null,{"$f":"ROUND(IF(ISERROR(VLOOKUP(B42,#REF!,2,FALSE)),0,VLOOKUP(B42,#REF!,2,FALSE)),2)","v":0},{"$f":"IF(AND($U$4<=150,U3=1),0,C42*$U$4*$I$8)","v":0}]